bitfinex/quotes_ETHUSD_20250908
["timestamp","ask_amount","ask_price","bid_price","bid_amount"]
[1757321684791,16.83972522,4302.9,4302.8,0.29850001]
[1757321685166,16.04772522,4302.9,4302.8,0.29850001]
[1757321686265,16.83972522,4302.9,4302.8,0.29850001]
[1757321686961,17.49681949,4302.9,4302.8,0.00200001]
[1757321687167,18.43581949,4302.9,4302.8,0.00200001]
[1757321687692,24.27523963,4302.9,4302.8,0.00200001]
[1757321687894,18.43581949,4302.9,4302.8,0.00200001]
[1757321688093,17.18531949,4302.9,4302.8,0.00200001]
[1757321688393,19.63331949,4302.9,4302.8,0.00200001]
[1757321688598,17.18531949,4302.9,4302.8,0.00200001]
[1757321688764,14.18611949,4302.9,4302.8,0.00200001]
[1757321690599,17.18611949,4302.9,4302.8,0.00200001]
[1757321690794,17.99721949,4302.9,4302.8,0.00200001]
[1757321691002,10.60111949,4302.9,4302.8,0.29850001]
[1757321692174,7.60111949,4302.9,4302.8,0.29850001]
[1757321692773,10.25552522,4302.9,4302.8,0.29850001]
[1757321695499,10.25552522,4302.9,4302.8,0.72950001]
[1757321695500,5.54252522,4302.9,4302.8,0.72950001]
[1757321695701,6.46252522,4302.9,4302.8,1.17650001]
[1757321695870,10.25452522,4302.9,4302.8,1.17650001]
[1757321696070,9.46252522,4302.9,4302.8,1.17650001]
[1757321696271,10.25452522,4302.9,4302.8,1.17650001]
[1757321696494,10.25452522,4302.9,4302.8,1.29415001]
[1757321696691,10.25452522,4302.9,4302.8,1.51106565]
[1757321697408,10.25452522,4302.9,4302.8,1.39341565]
[1757321698978,10.25482187,4302.9,4302.8,1.39341565]
[1757321699323,10.25482187,4302.9,4302.8,0.74550001]
[1757321699527,10.25482187,4302.9,4302.8,0.9623327]
[1757321700016,10.25482187,4302.9,4302.8,0.74550001]
[1757321700177,10.25482187,4302.9,4302.8,0.96233163]
[1757321701097,10.25482187,4302.9,4302.8,0.29850001]
[1757321702396,10.25482187,4302.9,4302.8,0.00200001]
[1757321704209,10.25482187,4302.9,4302.8,0.30040001]
[1757321705417,9.46282187,4302.9,4302.8,0.30040001]
[1757321705617,9.46282187,4302.9,4302.8,0.74740001]
[1757321705790,9.46282187,4302.9,4302.8,0.30040001]
[1757321709324,9.46202187,4302.9,4302.8,0.30040001]
[1757321712615,12.66742721,4302.9,4302.8,0.00200001]
[1757321713424,19.25242721,4302.9,4302.8,0.00200001]
[1757321719636,19.25227176,4302.9,4302.8,0.00200001]
[1757321723139,19.25225426,4302.9,4302.8,0.00200001]
[1757321723642,19.25224503,4302.9,4302.8,0.00200001]
[1757321725622,12.66724503,4302.9,4302.8,0.00200001]
[1757321734168,12.44961937,4302.9,4302.8,0.00200001]
[1757321734339,12.66726328,4302.9,4302.8,0.00200001]
[1757321734752,12.66646328,4302.9,4302.8,0.00200001]
[1757321741791,12.66678986,4302.9,4302.8,0.00200001]
[1757321742751,5.54138452,4302.9,4302.8,0.72070001]
[1757321742970,9.45638452,4302.9,4302.8,1.17490001]
[1757321743174,6.45638452,4302.9,4302.8,1.17490001]
[1757321743484,7.24838452,4302.9,4302.8,1.17490001]
[1757321743981,10.24838452,4302.9,4302.8,1.17490001]
[1757321748707,10.24838452,4302.9,4302.8,0.74390001]
[1757321749018,10.24838452,4302.9,4302.8,0.28970001]
[1757321752015,4.13397049,4302.9,4302.8,1.29239001]
[1757321752211,0.001,4302.9,4302.8,7.35037342]
[1757321758091,0.001,4302.9,4302.8,1.50934381]
[1757321760229,0.0002,4302.9,4302.8,1.50934381]
[1757321761828,0.0002,4302.9,4302.8,7.35037342]
[1757321762423,0.0002,4302.9,4302.8,7.3498123]
[1757321764219,0.0002,4302.9,4302.8,1.50878269]
[1757321764692,0.0002,4302.9,4302.8,1.07778269]
[1757321766489,0.0002,4302.9,4302.8,0.62358269]
[1757321766700,0.0002,4302.9,4302.8,1.06178269]
[1757321767533,0.0002,4302.9,4302.8,7.3338123]
[1757321767810,0.0002,4302.9,4302.8,9.65788034]
[1757321768015,0.0002,4302.9,4302.8,7.3338123]
[1757321768732,0.0002,4302.9,4302.8,9.65788034]
[1757321769308,0.0002,4302.9,4302.8,7.3338123]
[1757321769946,0.0002,4302.9,4302.8,6.8956123]
[1757321770253,0.001,4303.9,4303.3,2.32375343]
[1757321770454,0.001,4303.9,4303.7,5.84102961]
[1757321770601,0.001,4303.9,4303.7,10.28192229]
[1757321770804,0.001,4303.9,4303.7,11.15112229]
[1757321771114,0.001,4303.9,4303.7,10.71292229]
[1757321771312,0.001,4303.9,4303.7,10.53195953]
[1757321773242,0.001,4303.9,4303.7,10.53171471]
[1757321776161,0.001,4303.9,4303.7,0.4661851]
[1757321776330,3.55132804,4303.8,4303.7,0.21614786]
[1757321776532,2.32377109,4303.4,4303.2,3.909]
[1757321776740,3.24697109,4303.4,4303.3,0.21621329]
[1757321777028,3.55057109,4303.4,4303.3,0.21621329]
[1757321777661,2.62737109,4303.4,4303.3,0.21621329]
[1757321778185,2.32369628,4303.5,4303.3,0.21621329]
[1757321778385,2.32369628,4303.5,4303.4,0.21621329]
[1757321778554,2.32364872,4303.6,4303.4,0.21621329]
[1757321778755,2.32364872,4303.6,4303.5,0.21621329]
[1757321779493,3.10664872,4303.6,4303.5,0.21621329]
[1757321779660,3.55044872,4303.6,4303.5,0.21621329]
[1757321780858,8.83804659,4303.6,4303.5,0.21621329]
[1757321781158,8.83804659,4303.6,4302.8,0.00200001]
[1757321781159,2.32401403,4302.9,4302.8,0.00200001]
[1757321781360,2.32401403,4302.9,4302.8,0.21852922]
[1757321781559,3.55081403,4302.9,4302.8,0.21852922]
[1757321782876,3.89901403,4302.9,4302.8,0.21852922]
[1757321783057,5.53450738,4302.9,4302.8,0.21852922]
[1757321783690,8.25081403,4302.9,4302.8,0.21852922]
[1757321784558,8.25181403,4302.9,4302.8,0.21852922]
[1757321786494,3.909,4302.9,4302.8,0.53002922]
[1757321786891,6.23301403,4302.9,4302.8,0.53002922]
[1757321787862,3.909,4302.9,4302.8,0.53002922]
[1757321788691,3.909,4302.9,4302.8,1.1671351]
[1757321789512,0.001,4302.9,4302.8,7.43916471]
[1757321789715,0.001,4302.9,4302.8,7.88766471]
[1757321790080,0.0002,4302.9,4302.8,7.88766471]
[1757321792108,3.09431403,4302.9,4302.8,0.21852922]
[1757321792308,0.0002,4302.9,4302.8,0.21852922]
[1757321792605,0.0002,4302.9,4302.8,0.53002922]
[1757321794008,3.10451403,4302.9,4302.8,0.21852922]
[1757321794214,3.57681403,4302.9,4302.8,0.21852922]
[1757321795909,3.09431403,4302.9,4302.8,0.21852922]
[1757321796081,2.62201403,4302.9,4302.8,0.21852922]
[1757321796642,2.32421403,4302.9,4302.8,0.21852922]
[1757321797319,6.23121403,4302.9,4302.8,0.21852922]
[1757321798114,3.9072,4302.9,4302.8,0.53002922]
[1757321798579,0.0002,4302.9,4302.8,1.44440727]
[1757321798778,0.0002,4302.9,4302.8,2.32390727]
[1757321799078,0.0002,4302.9,4302.8,1.89290727]
[1757321799277,0.0002,4302.9,4302.8,1.44440727]
[1757321802727,0.0002,4302.9,4302.8,1.87540727]
[1757321802890,0.0002,4302.9,4302.8,2.32390727]
[1757321803504,0.0002,4302.9,4302.8,4.64797531]
[1757321805096,0.0002,4302.9,4302.8,4.21697531]
[1757321805296,0.0002,4302.9,4302.8,4.64797531]
[1757321807526,0.0002,4302.9,4302.8,4.21697531]
[1757321808034,0.0002,4302.9,4302.8,8.12297531]
[1757321809428,0.0002,4302.9,4302.8,3.76847531]
[1757321809596,0.0002,4302.9,4302.8,5.35040727]
[1757321809929,0.0002,4302.9,4302.8,5.35098329]
[1757321811029,0.4717,4303.3,4302.8,5.35098329]
[1757321811335,0.9542,4303.3,4303.0,5.84102961]
[1757321811532,0.9542,4303.3,4303.1,4.12210523]
[1757321811830,0.9542,4303.3,4303.2,0.21710523]
[1757321812010,1.252,4303.3,4303.2,0.21710523]
[1757321812831,0.001,4303.4,4303.2,0.6826868]
[1757321813131,0.001,4303.4,4303.3,0.21710523]
[1757321813514,0.7297,4303.4,4303.3,0.21710523]
[1757321813735,1.2089,4303.4,4303.3,0.21710523]
[1757321814239,3.53264401,4303.4,4303.3,0.21710523]
[1757321814529,1.2089,4303.4,4303.3,0.21710523]
[1757321814841,0.001,4303.4,4303.3,0.21710523]
[1757321815199,0.001,4303.4,4303.3,4.41680523]
[1757321815414,0.001,4303.4,4303.3,5.33118328]
[1757321816319,0.001,4303.4,4303.3,5.03648328]
[1757321816519,0.001,4303.4,4303.3,7.36028129]
[1757321816922,0.001,4303.4,4303.3,7.65498129]
[1757321817448,0.001,4303.4,4303.3,5.33118328]
[1757321817631,0.001,4303.4,4303.3,5.03648328]
[1757321819255,0.001,4303.4,4303.3,5.33118328]
[1757321819451,0.001,4303.4,4303.3,7.65498129]
[1757321821954,0.001,4303.4,4303.3,1.13148328]
[1757321822153,1.2014,4303.4,4303.3,4.12110523]
[1757321822655,0.2913,4303.4,4303.3,4.12110523]
[1757321822846,0.001,4303.4,4303.3,4.12110523]
[1757321825555,0.001,4303.4,4303.3,4.41580523]
[1757321825872,0.001,4303.4,4303.3,6.73960324]
[1757321826167,0.001,4303.4,4303.3,7.17140324]
[1757321826723,0.001,4303.4,4303.3,7.60240324]
[1757321827972,0.001,4303.4,4303.3,7.17060324]
[1757321828138,0.001,4303.4,4303.3,6.73960324]
[1757321828339,0.001,4303.4,4303.3,6.73860324]
[1757321828838,0.001,4303.8,4303.7,2.32358203]
[1757321829164,0.001,4303.8,4303.7,6.44368726]
[1757321829478,0.001,4303.8,4303.7,8.43379977]
[1757321830152,0.001,4303.8,4303.7,7.60118726]
[1757321830375,0.001,4303.8,4303.7,8.43352517]
[1757321830868,0.001,4303.8,4303.7,7.60118726]
[1757321831271,0.001,4303.8,4303.7,10.60118726]
[1757321832683,0.001,4303.8,4303.7,25.10118726]
[1757321833445,0.001,4303.8,4303.7,24.67018726]
[1757321833760,0.001,4303.8,4303.7,24.23838726]
[1757321834943,0.001,4303.8,4303.7,24.67018726]
[1757321835180,0.001,4303.8,4303.7,24.45308203]
[1757321836082,0.001,4303.8,4303.7,24.02128203]
[1757321836460,0.0002,4303.8,4303.7,24.02128203]
[1757321839067,0.0002,4303.8,4303.7,20.11828203]
[1757321839273,0.0002,4303.8,4303.7,24.02028203]
[1757321841375,1.2006,4303.8,4303.7,9.22458203]
[1757321847786,0.2905,4303.8,4303.7,9.22458203]
[1757321847986,1.2393,4303.8,4303.7,9.22458203]
[1757321853104,1.2393,4303.8,4303.6,0.83126553]
[1757321853401,0.2905,4303.8,4303.7,3.9]
[1757321853904,1.2393,4303.8,4303.7,3.9]
[1757321857183,1.2393,4303.8,4303.6,0.002]
[1757321857385,0.12403,4303.7,4303.6,0.002]
[1757321857595,1.2393,4303.8,4303.6,0.002]
[1757321858474,0.456,4303.7,4303.6,0.002]
[1757321858888,1.2654,4303.7,4303.6,0.002]
[1757321861881,1.2646,4303.7,4303.6,0.002]
[1757321864415,3.58818203,4303.7,4303.6,0.002]
[1757321864579,4.17946817,4303.7,4303.6,0.002]
[1757321865314,1.85588614,4303.7,4303.6,0.002]
[1757321865684,4.17946817,4303.7,4303.6,0.002]
[1757321866292,4.97146817,4303.7,4303.6,0.002]
[1757321869810,8.87146817,4303.7,4303.6,0.002]
[1757321870016,5.75588614,4303.7,4303.6,0.002]
[1757321870218,4.7094,4303.7,4303.6,0.002]
[1757321870398,0.3166,4303.7,4303.6,0.002]
[1757321870718,6.22373765,4303.8,4303.6,0.002]
[1757321870919,2.32358203,4303.7,4303.6,0.002]
[1757321871215,3.58898203,4303.7,4303.6,0.002]
[1757321873427,0.3105,4303.7,4303.6,0.002]
[1757321873611,1.2487,4303.7,4303.6,0.002]
[1757321882337,0.0002,4303.8,4303.6,0.002]
[1757321882736,1.2487,4303.7,4303.6,0.002]
[1757321887543,1.2479,4303.7,4303.6,0.002]
[1757321889804,5.1459,4303.7,4303.6,0.002]
[1757321894847,5.1459,4303.7,4303.1,2.15988796]
[1757321895348,5.1459,4303.7,4303.2,0.21694913]
[1757321895520,5.1459,4303.7,4303.3,0.21694913]
[1757321895819,5.1459,4303.7,4303.4,0.21694913]
[1757321896022,5.1459,4303.7,4303.5,0.21694913]
[1757321896348,5.1459,4303.7,4303.6,0.21694913]
[1757321897616,14.84535891,4303.7,4303.6,0.21694913]
[1757321897821,3.792,4303.6,4302.8,0.00200001]
[1757321898040,2.32401403,4302.9,4302.8,0.00200001]
[1757321898241,6.53151403,4302.9,4302.8,0.00200001]
[1757321898460,7.46971403,4302.9,4302.8,0.00200001]
[1757321900147,5.1457,4302.9,4302.8,0.00200001]
[1757321901450,7.00401403,4302.9,4302.8,0.00200001]
[1757321901653,8.17011543,4302.9,4302.8,0.00200001]
[1757321902368,8.96211543,4302.9,4302.8,0.00200001]
[1757321903587,0.57540336,4303.3,4302.8,0.29650001]
[1757321903753,2.32397806,4303.0,4302.8,0.29650001]
[1757321904082,3.897,4302.9,4302.8,0.29650001]
[1757321905878,3.897,4302.9,4302.8,0.00200001]
[1757321906797,6.22101403,4302.9,4302.8,0.00200001]
[1757321907153,3.897,4302.9,4302.8,0.00200001]
[1757321908650,3.897,4302.9,4302.8,0.29650001]
[1757321910448,3.897,4302.9,4302.8,0.00200001]
[1757321912989,3.8962,4302.9,4302.8,0.00200001]
[1757321915691,2.89923385,4303.3,4302.8,0.29650001]
[1757321915692,0.57540336,4303.3,4302.8,0.29650001]
[1757321916002,3.897,4303.2,4302.8,0.29650001]
[1757321916418,0.4573,4303.1,4302.8,0.29650001]
[1757321916621,3.897,4303.0,4302.8,0.29650001]
[1757321922356,3.897,4303.0,4302.8,0.00200001]
[1757321922945,4.3543,4303.0,4302.8,0.00200001]
[1757321923161,3.54241403,4302.9,4302.8,0.00200001]
[1757321923464,1.9623414,4302.9,4302.8,0.00200001]
[1757321923624,1.2184,4302.9,4302.8,0.00200001]
[1757321925078,3.897,4303.0,4302.8,0.29650001]
[1757321925467,3.897,4303.0,4302.8,6.13331373]
[1757321925655,2.36968905,4303.5,4302.9,0.4525]
[1757321925853,3.896,4303.4,4303.1,5.83681372]
[1757321926057,3.896,4303.4,4303.3,0.2945]
[1757321927562,3.896,4303.4,4303.1,5.83681372]
[1757321928490,3.896,4303.4,4303.3,0.2945]
[1757321928696,3.896,4303.4,4302.9,2.32396071]
[1757321928862,0.3012,4303.2,4302.8,12.05886806]
[1757321929065,0.3012,4303.2,4302.8,2.32605434]
[1757321929295,0.4573,4303.1,4302.8,0.00200001]
[1757321930192,0.4573,4303.1,4302.8,2.32606605]
[1757321930588,0.4573,4303.1,4302.9,2.32400639]
[1757321930743,4.3533,4303.4,4302.9,2.32400639]
[1757321930943,4.8132,4303.4,4302.9,2.32400639]
[1757321932350,4.8132,4303.4,4302.8,0.00200001]
[1757321933189,4.8132,4303.4,4302.9,2.32396594]
[1757321933350,0.4394,4303.3,4302.9,2.32396594]
[1757321935012,0.4394,4303.3,4302.8,2.3260661]
[1757321935302,0.4394,4303.3,4303.0,2.32391092]
[1757321935478,3.896,4303.4,4303.1,2.32388621]
[1757321936291,3.896,4303.4,4303.3,0.2876]
[1757321938232,3.8952,4303.4,4303.3,0.2876]
[1757321938376,0.001,4303.5,4303.3,10.22812376]
[1757321938576,0.001,4303.5,4303.3,7.90432635]
[1757321939013,0.001,4303.5,4303.3,0.54874956]
[1757321939193,0.001,4303.5,4303.3,0.2876]
[1757321939920,0.001,4303.5,4303.2,2.32384501]
[1757321939921,0.001,4303.5,4303.0,11.24957679]
[1757321940107,0.9348,4303.5,4303.0,13.5735287]
[1757321940426,0.001,4303.5,4303.4,0.2876]
[1757321940635,0.001,4303.5,4303.4,7.64317679]
[1757321940782,0.001,4303.5,4303.4,10.73123848]
[1757321941298,0.001,4303.5,4303.4,11.62273848]
[1757321942120,0.001,4303.5,4303.4,11.19093848]
[1757321943024,0.001,4303.5,4303.4,11.62273848]
[1757321943186,0.001,4303.5,4303.4,14.62273848]
[1757321944408,0.001,4303.5,4303.4,13.73123848]
[1757321944582,0.001,4303.5,4303.4,17.62523848]
[1757321946415,0.001,4303.5,4303.4,11.11989447]
[1757321946618,0.7342,4303.5,4303.4,14.33763848]
[1757321946821,1.2286,4303.5,4303.4,14.33763848]
[1757321947033,0.001,4303.5,4303.4,14.62523848]
[1757321947210,0.001,4303.5,4303.4,14.33763848]
[1757321948428,0.001,4303.5,4303.4,14.62523848]
[1757321955316,0.001,4303.5,4303.4,18.05703848]
[1757321955517,0.0002,4303.8,4303.7,2.32358203]
[1757321955754,0.0002,4303.8,4303.7,9.21658203]
[1757321955913,0.0002,4303.8,4303.7,9.50418203]
[1757321958846,0.0002,4303.8,4303.7,9.50318203]
[1757321963619,0.0004,4303.9,4303.8,5.32352804]
[1757321963818,0.0004,4303.9,4303.8,13.44342251]
[1757321964053,0.0004,4303.9,4303.8,13.74262251]
[1757321964826,0.2952,4303.9,4303.8,2.32352804]
[1757321965026,1.2285,4303.9,4303.8,6.21552804]
[1757321967421,1.2285,4303.9,4303.4,8.60190083]
[1757321967617,0.9333,4303.8,4303.7,2.32354165]
[1757321967818,1.2281,4303.8,4303.7,6.21454165]
[1757321969722,0.7627,4303.8,4303.7,6.21454165]
[1757321971163,0.2948,4303.8,4303.7,6.21454165]
[1757321973972,0.001,4305.4,4305.3,7.35557679]
[1757321974280,0.4689,4305.4,4305.3,6.2317185]
[1757321974583,0.7637,4305.4,4305.3,6.2317185]
[1757321974925,1.2291,4305.4,4305.3,6.2317185]
[1757321975941,1.2291,4305.4,4305.3,13.58729529]
[1757321976365,0.2958,4305.4,4305.3,13.58729529]
[1757321976568,0.001,4305.4,4305.3,13.58729529]
[1757321976932,0.001,4305.4,4305.3,13.88649529]
[1757321977138,0.001,4305.4,4305.3,13.58729529]
[1757321979084,0.001,4305.4,4305.3,9.67829529]
[1757321979377,0.001,4305.4,4305.3,13.58529529]
[1757321984696,0.001,4305.4,4305.3,13.88449529]
[1757321988384,0.001,4305.4,4305.3,13.58529529]
[1757321989303,0.0002,4305.4,4305.3,16.88449529]
[1757321992698,0.0002,4305.4,4305.3,16.87649529]
[1757321993465,0.0002,4305.4,4305.3,16.57729529]
[1757321994102,0.0002,4305.4,4305.3,16.86239529]
[1757321996404,0.0002,4305.4,4305.3,15.72499191]
[1757321996780,0.0002,4305.4,4305.3,15.43989191]
[1757321998275,0.7423,4305.4,4305.3,15.43989191]
[1757321999014,1.2352,4305.4,4305.3,3.896]
[1757321999176,1.2352,4305.4,4305.3,3.897]
[1757322000128,1.2352,4305.4,4305.2,2.32276824]
[1757322000410,0.2988,4305.4,4305.3,3.897]
[1757322000574,0.2988,4305.4,4305.3,6.2187185]
[1757322000782,1.2352,4305.4,4305.3,3.896]
[1757322001594,1.2352,4305.4,4305.1,0.002]
[1757322001595,1.35872,4305.4,4305.1,0.002]
[1757322001781,0.4929,4305.3,4305.1,0.002]
[1757322002177,3.06487246,4305.2,4305.1,0.002]
[1757322002616,3.55777246,4305.2,4305.1,0.002]
[1757322005142,1.235,4305.2,4305.1,0.002]
[1757322005344,0.12372,4305.4,4305.1,0.002]
[1757322005345,0.0002,4305.4,4305.1,0.002]
[1757322005511,0.2986,4305.2,4305.1,0.002]
[1757322005913,1.235,4305.2,4305.1,0.002]
[1757322007913,3.68129246,4305.2,4305.1,0.002]
[1757322009727,7.58129246,4305.2,4305.1,0.002]
[1757322014676,7.58049246,4305.2,4305.1,0.002]
[1757322017566,8.37249246,4305.2,4305.1,0.002]
[1757322018075,7.58049246,4305.2,4305.1,0.002]
[1757322018248,4.10786923,4305.4,4305.1,0.2871]
[1757322018463,5.6822,4305.4,4305.1,0.2871]
[1757322019490,5.6822,4305.4,4305.1,0.002]
[1757322019699,2.76622662,4305.3,4305.1,0.002]
[1757322019896,2.62137246,4305.2,4305.1,0.002]
[1757322020095,3.55777246,4305.2,4305.1,0.002]
[1757322020597,4.71403449,4305.2,4305.1,0.002]
[1757322024071,8.61103449,4305.2,4305.1,0.002]
[1757322025693,7.86893449,4305.2,4305.1,0.002]
[1757322027275,8.66093449,4305.2,4305.1,0.002]
[1757322029464,8.66193449,4305.2,4305.1,0.002]
[1757322030507,8.66113449,4305.2,4305.1,0.002]
[1757322031000,8.87873892,4305.2,4305.1,0.002]
[1757322031210,11.87873892,4305.2,4305.1,0.002]
[1757322034194,18.46373892,4305.2,4305.1,0.002]
[1757322036382,18.64015814,4305.2,4305.1,0.002]
[1757322038406,5.32282641,4305.1,4304.6,1e-08]
[1757322038611,12.33321566,4304.7,4304.6,1e-08]
[1757322038806,16.44382009,4304.7,4304.6,1e-08]
[1757322039006,16.92832009,4304.7,4304.6,1e-08]
[1757322040105,16.92752009,4304.7,4304.6,1e-08]
[1757322043642,13.92752009,4304.7,4304.6,1e-08]
[1757322043941,18.74036765,4304.7,4304.6,1e-08]
[1757322047258,15.74036765,4304.7,4304.6,1e-08]
[1757322047422,25.32536765,4304.7,4304.6,1e-08]
[1757322049447,3.11547405,4303.9,4303.8,1e-08]
[1757322049646,9.33375544,4303.7,4303.6,1e-08]
[1757322049947,16.22675544,4303.7,4303.6,1e-08]
[1757322054630,16.67725544,4303.7,4303.6,1e-08]
[1757322055047,16.22675544,4303.7,4303.6,1e-08]
[1757322055743,10.00858203,4303.7,4303.6,1e-08]
[1757322055945,10.00858203,4303.7,4303.6,0.30150001]
[1757322056147,12.18887273,4303.7,4303.6,0.30150001]
[1757322057465,12.40595309,4303.7,4303.6,0.30150001]
[1757322060659,12.40595309,4303.7,4303.6,1e-08]
[1757322060865,19.44145309,4303.7,4303.6,1e-08]
[1757322061364,26.79879939,4303.7,4303.6,1e-08]
[1757322062158,19.44145309,4303.7,4303.6,1e-08]
[1757322064138,18.99095309,4303.7,4303.6,1e-08]
[1757322064336,18.99095309,4303.7,4303.6,0.30150001]
[1757322064552,15.09795309,4303.7,4303.6,0.30150001]
[1757322064746,18.99195309,4303.7,4303.6,0.30150001]
[1757322064951,18.99295309,4303.7,4303.6,0.30150001]
[1757322065440,18.99215309,4303.7,4303.6,0.30150001]
[1757322067340,18.77507273,4303.7,4303.6,0.30150001]
[1757322067539,18.99265355,4303.7,4303.6,0.30150001]
[1757322068943,18.99265355,4303.7,4303.6,0.30150001]
[1757322069571,9.12636285,4303.7,4303.6,1.18380001]
[1757322069871,12.80278203,4303.7,4303.6,1.18380001]
[1757322070571,13.0204875,4303.7,4303.6,1.18380001]
[1757322071879,12.80278203,4303.7,4303.6,1.18380001]
[1757322076581,12.80278203,4303.7,4303.6,0.75200001]
[1757322077580,12.80278203,4303.7,4303.6,0.30150001]
[1757322078767,0.001,4303.7,4303.6,1.18380001]
[1757322078970,0.001,4303.7,4303.6,1.30238001]
[1757322080273,0.001,4303.7,4303.6,0.30150001]
[1757322080274,2.32458203,4303.7,4303.6,0.30150001]
[1757322080871,2.61308203,4303.7,4303.6,1e-08]
[1757322081066,7.30948203,4303.7,4303.6,1e-08]
[1757322081276,7.52700718,4303.7,4303.6,1e-08]
[1757322081479,9.07995541,4303.7,4303.6,1e-08]
[1757322084991,12.06855541,4303.7,4303.6,1e-08]
[1757322085190,12.50195541,4303.7,4303.6,1e-08]
[1757322085356,12.95725541,4303.7,4303.6,1e-08]
[1757322089572,12.52385541,4303.7,4303.6,1e-08]
[1757322089965,12.95725541,4303.7,4303.6,1e-08]
[1757322090888,12.95645541,4303.7,4303.6,1e-08]
[1757322093511,19.54145541,4303.7,4303.6,1e-08]
[1757322094716,18.65275541,4303.7,4303.6,1e-08]
[1757322096111,19.54156541,4303.7,4303.6,1e-08]
[1757322096816,19.54156869,4303.7,4303.6,1e-08]
[1757322103324,19.54156869,4303.7,4302.8,0.00200001]
[1757322103325,0.792,4303.1,4302.8,0.00200001]
[1757322103626,6.11601403,4302.9,4302.8,0.00200001]
[1757322103828,6.63525246,4302.9,4302.8,0.00200001]
[1757322104029,13.67555246,4302.9,4302.8,0.00200001]
[1757322104227,18.00195246,4302.9,4302.8,0.00200001]
[1757322107539,18.17491201,4302.9,4302.8,0.00200001]
[1757322107836,20.44281998,4302.9,4302.8,0.00200001]
[1757322111134,12.12665246,4302.9,4302.8,0.30960001]
[1757322111303,16.01965246,4302.9,4302.8,0.30960001]
[1757322111515,16.81165246,4302.9,4302.8,0.30960001]
[1757322112104,16.81165246,4302.9,4302.8,0.74140001]
[1757322112301,16.81165246,4302.9,4302.8,0.30960001]
[1757322112800,16.81165246,4302.9,4302.8,0.00200001]
[1757322113941,19.85456043,4302.9,4302.8,0.00200001]
[1757322114138,20.31386043,4302.9,4302.8,0.00200001]
[1757322115814,3.11606804,4302.8,4302.7,1e-08]
[1757322116148,3.33370647,4302.8,4302.7,1e-08]
[1757322116367,10.98130045,4302.8,4302.7,1e-08]
[1757322116649,13.34233444,4302.8,4302.7,1e-08]
[1757322120155,19.92733444,4302.8,4302.7,1e-08]
[1757322122567,22.37533444,4302.8,4302.7,1e-08]
[1757322122770,19.92733444,4302.8,4302.7,1e-08]
[1757322126773,13.16476256,4302.8,4302.7,1e-08]
[1757322126955,12.85006256,4302.8,4302.7,1e-08]
[1757322127644,13.62406256,4302.8,4302.7,1e-08]
[1757322128075,14.08436256,4302.8,4302.7,1e-08]
[1757322128704,13.62506256,4302.8,4302.7,1e-08]
[1757322128886,12.85006256,4302.8,4302.7,1e-08]
[1757322129089,12.85006256,4302.8,4302.7,0.30550001]
[1757322129265,13.68215459,4302.8,4302.7,0.30550001]
[1757322129586,14.38102857,4302.8,4302.7,0.30550001]
[1757322131250,14.38102857,4302.8,4302.7,1.19370001]
[1757322132362,14.38102857,4302.8,4302.7,0.76190001]
[1757322134106,14.38102857,4302.8,4302.7,0.30550001]
[1757322135191,14.76125241,4302.8,4302.7,0.30550001]
[1757322136439,14.76225241,4302.8,4302.7,0.30550001]
[1757322141905,14.76145241,4302.8,4302.7,0.30550001]
[1757322142235,14.38122857,4302.8,4302.7,0.30550001]
[1757322142943,7.00582857,4302.8,4302.7,1.19370001]
[1757322143107,6.78819014,4302.8,4302.7,1.19370001]
[1757322146157,6.78819014,4302.8,4302.7,0.76190001]
[1757322146514,6.78819014,4302.8,4302.7,0.30550001]
[1757322153150,8.34699014,4302.8,4302.7,1e-08]
[1757322153475,10.05848691,4302.8,4302.7,1e-08]
[1757322154191,9.48736481,4302.8,4302.7,1e-08]
[1757322155161,8.24156804,4302.8,4302.7,1e-08]
[1757322155797,7.78436804,4302.8,4302.7,1e-08]
[1757322156301,7.00906804,4302.8,4302.7,1e-08]
[1757322160122,7.00906804,4302.8,4302.7,0.29260001]
[1757322160280,7.00906804,4302.8,4302.7,1e-08]
[1757322163018,6.21706804,4302.8,4302.7,0.29260001]
[1757322164015,6.21706804,4302.8,4302.7,1e-08]
[1757322166897,6.99236804,4302.8,4302.7,1e-08]
[1757322167095,6.21706804,4302.8,4302.7,1e-08]
[1757322167299,6.21626804,4302.8,4302.7,1e-08]
[1757322167624,6.21626804,4302.8,4302.7,0.29260001]
[1757322171793,0.001,4302.8,4302.7,7.02477189]
[1757322172100,0.001,4302.8,4302.7,7.96239497]
[1757322177552,0.001,4302.8,4302.7,10.28651703]
[1757322178213,0.001,4302.8,4302.7,10.98455589]
[1757322178413,0.001,4302.8,4302.7,12.49557974]
[1757322180641,0.001,4302.8,4302.7,13.32675333]
[1757322181538,0.001,4302.8,4302.7,12.49557974]
[1757322182035,0.001,4302.8,4302.7,26.99557974]
[1757322183720,0.311,4302.8,4302.7,1.63566195]
[1757322184046,1.2059,4302.8,4302.7,0.69803887]
[1757322184342,1.2059,4302.8,4302.7,1e-08]
[1757322184919,0.7465,4302.8,4302.7,1e-08]
[1757322185142,0.001,4302.8,4302.7,1e-08]
[1757322185646,0.001,4302.8,4302.7,3.77980231]
[1757322185813,0.001,4302.8,4302.7,4.19576109]
[1757322186014,0.001,4302.8,4302.7,4.65616109]
[1757322187114,0.001,4302.8,4302.7,7.67940231]
[1757322187304,0.001,4302.8,4302.7,8.90381361]
[1757322188003,0.001,4303.1,4303.0,12.67795575]
[1757322188202,0.001,4303.1,4303.0,19.1085052]
[1757322188526,0.001,4303.1,4303.0,21.11825822]
[1757322188703,0.001,4303.1,4303.0,21.21130885]
[1757322189105,0.001,4303.1,4303.0,35.71130885]
[1757322190135,0.001,4303.1,4303.0,34.88165583]
[1757322190303,0.001,4303.3,4303.2,2.32385201]
[1757322190503,0.001,4303.3,4303.2,8.17150057]
[1757322190703,0.001,4303.3,4303.2,9.32836205]
[1757322190909,0.001,4303.6,4303.5,2.32369001]
[1757322191240,0.001,4303.6,4303.5,17.39469521]
[1757322191494,0.001,4303.6,4303.5,18.57479521]